fUST/lending_fUST_20240731
["ID","MTS","AMOUNT","RATE_DAILY","PERIOD"]
[333689956,1722357042728,-500.0,0.00013972,2]
[333689957,1722357042739,-500.0,0.00013972,2]
[333689959,1722357042749,-506.317492,0.00013972,2]
[333689961,1722357042759,-500.0,0.00013972,2]
[333689962,1722357042769,-500.0,0.00013972,2]
[333689963,1722357042779,-500.0,0.00013972,2]
[333689964,1722357042788,-623.41,0.00013972,2]
[333689965,1722357042798,-500.0,0.00013972,2]
[333689967,1722357042807,-500.0,0.00013972,2]
[333689968,1722357042819,-500.0,0.00013972,2]
[333689969,1722357042829,-500.0,0.00013972,2]
[333689970,1722357042839,-506.08476174,0.00013972,2]
[333689971,1722357042848,-500.0,0.00013972,2]
[333689973,1722357042859,-500.0,0.00013972,2]
[333689975,1722357042869,-500.0,0.00013972,2]
[333689977,1722357042882,-500.0,0.00013972,2]
[333689979,1722357042893,-509.94,0.00013972,2]
[333689980,1722357042908,-500.0,0.00013972,2]
[333689981,1722357042920,-500.0,0.00013972,2]
[333689983,1722357042932,-500.0,0.00013972,2]
[333689985,1722357042942,-500.0,0.00013972,2]
[333689986,1722357042954,-500.0,0.00013972,2]
[333689987,1722357042964,-500.0,0.00013972,2]
[333689988,1722357042975,-500.0,0.00013972,2]
[333689990,1722357042985,-500.0,0.00013972,2]
[333689992,1722357042994,-500.0,0.00013972,2]
[333689994,1722357043004,-500.0,0.00013972,2]
[333689996,1722357043014,-500.0,0.00013972,2]
[333689997,1722357043024,-500.0,0.00013972,2]
[333689998,1722357043035,-500.0,0.00013972,2]
[333689999,1722357043046,-500.0,0.00013972,2]
[333690000,1722357043057,-500.0,0.00013972,2]
[333690001,1722357043069,-500.0,0.00013972,2]
[333690002,1722357043078,-1083.33,0.00013972,2]
[333690003,1722357043087,-500.0,0.00013972,2]
[333690004,1722357043099,-500.0,0.00013972,2]
[333690006,1722357043111,-500.0,0.00013972,2]
[333690007,1722357043121,-500.0,0.00013972,2]
[333690008,1722357043132,-500.0,0.00013972,2]
[333690009,1722357043143,-500.0,0.00013972,2]
[333690010,1722357043152,-500.0,0.00013972,2]
[333690011,1722357043162,-500.0,0.00013972,2]
[333690012,1722357043172,-500.0,0.00013972,2]
[333690013,1722357043181,-500.0,0.00013972,2]
[333690014,1722357043190,-500.0,0.00013972,2]
[333690015,1722357043200,-500.0,0.00013972,2]
[333690016,1722357043209,-500.0,0.00013972,2]
[333690017,1722357043220,-500.0,0.00013972,2]
[333690018,1722357043231,-500.0,0.00013972,2]
[333690019,1722357043241,-500.0,0.00013972,2]
[333690021,1722357043251,-467.54867267,0.00013972,2]
[333690022,1722357043261,-500.0,0.00013972,2]
[333690023,1722357043271,-500.0,0.00013972,2]
[333690024,1722357043280,-500.0,0.00013972,2]
[333690025,1722357043289,-500.0,0.00013972,2]
[333690026,1722357043299,-500.0,0.00013972,2]
[333690027,1722357043308,-500.0,0.00013972,2]
[333690028,1722357043318,-500.0,0.00013972,2]
[333690029,1722357043328,-500.0,0.00013972,2]
[333690030,1722357043338,-500.0,0.00013972,2]
[333690031,1722357043347,-500.0,0.00013972,2]
[333690032,1722357043357,-500.0,0.00013972,2]
[333690033,1722357043366,-500.0,0.00013972,2]
[333690034,1722357043375,-500.0,0.00013972,2]
[333690035,1722357043385,-500.0,0.00013972,2]
[333690036,1722357043394,-500.0,0.00013972,2]
[333690037,1722357043404,-500.0,0.00013972,2]
[333690038,1722357043413,-399.34817046,0.00013972,2]
[333690039,1722357043423,-500.0,0.00013972,2]
[333690040,1722357043432,-570.52,0.00013972,2]
[333690041,1722357043441,-547.02,0.00013972,2]
[333690042,1722357043451,-500.0,0.00013972,2]
[333690043,1722357043460,-500.0,0.00013972,2]
[333690044,1722357043470,-500.0,0.00013972,2]
[333690045,1722357043479,-500.0,0.00013972,2]
[333690046,1722357043490,-500.0,0.00013972,2]
[333690047,1722357043499,-500.0,0.00013972,2]
[333690048,1722357043508,-500.0,0.00013972,2]
[333690049,1722357043518,-500.0,0.00013972,2]
[333690050,1722357043527,-421.84885917,0.00013972,2]
[333690051,1722357043537,-500.0,0.00013972,2]
[333690052,1722357043546,-500.0,0.00013972,2]
[333690053,1722357043555,-411.02809339,0.00013972,2]
[333690054,1722357043565,-500.0,0.00013972,2]
[333690055,1722357043574,-500.0,0.00013972,2]
[333690056,1722357043583,-500.0,0.00013972,2]
[333690057,1722357043593,-500.0,0.00013972,2]
[333690058,1722357043603,-500.0,0.00013972,2]
[333690059,1722357043612,-500.0,0.00013972,2]
[333690060,1722357043621,-500.0,0.00013972,2]
[333690061,1722357043630,-151.0,0.00013972,2]
[333690062,1722357043640,-150.0,0.00013985,2]
[333690063,1722357043649,-1410.0,0.00013985,2]
[333690064,1722357043660,-150.0,0.00013996,2]
[333690065,1722357043669,-150.112233,0.00014,2]
[333690066,1722357043678,-392.2336341,0.00014,2]
[333690067,1722357043688,-294.1142903,0.00014,2]
[333690068,1722357043697,-294.1142903,0.00014,2]
[333690069,1722357043707,-1000.0,0.00014,14]
[333690070,1722357043717,-294.1142903,0.00014,2]
[333690071,1722357043726,-294.1142903,0.00014,2]
[333690072,1722357043735,-160.0,0.0001406,4]
[333690073,1722357043745,-310.73609075,0.0001406,5]
[333690074,1722357043755,-178.696435,0.00014095,2]
[333690075,1722357043765,-170.763194,0.00014095,2]
[333690076,1722357043775,-150.112233,0.000141,2]
[333690077,1722357043784,-620.00000023,0.00014134,2]
[333690078,1722357043793,-971.59814091,0.00014146,2]
[333690079,1722357043803,-150.112233,0.000142,2]
[333690080,1722357043813,-10329.052471,0.00014226,2]
[333690081,1722357043825,-151.0,0.00014228,2]
[333690082,1722357043835,-151.0,0.00014228,2]
[333690083,1722357043844,-151.8326,0.00014228,2]
[333690084,1722357043854,-465.661116,0.00014228,2]
[333690085,1722357043864,-465.661116,0.00014228,2]
[333690086,1722357043874,-1412.328664,0.00014228,2]
[333690087,1722357043883,-1412.328664,0.00014228,2]
[333690088,1722357043895,-2215.086738,0.00014228,2]
[333690089,1722357043905,-2215.086738,0.00014228,2]
[333690090,1722357043915,-1251.872034,0.00014228,2]
[333690091,1722357043925,-151.0,0.00014228,2]
[333690092,1722357043936,-1251.872034,0.00014228,2]
[333690093,1722357043947,-754.608104,0.00014228,2]
[333690094,1722357043957,-754.608104,0.00014228,2]
[333690095,1722357043967,-2282.654054,0.00014228,2]
[333690096,1722357043976,-151.0,0.00014228,2]
[333690097,1722357043986,-2282.654054,0.00014228,2]
[333690098,1722357043996,-500.0,0.00014235,2]
[333690099,1722357044006,-167.82674403,0.00014235,2]
[333690100,1722357044015,-261.54,0.00014235,2]
[333690101,1722357044025,-500.0,0.00014235,2]
[333690102,1722357044035,-642.31,0.00014235,2]
[333690103,1722357044044,-500.0,0.00014235,2]
[333690104,1722357044054,-500.0,0.00014235,2]
[333690105,1722357044063,-500.0,0.00014235,2]
[333690106,1722357044073,-3157.92729625,0.00014236,5]
[333690107,1722357044083,-10329.052471,0.00014236,2]
[333690108,1722357044092,-151.0,0.00014236,2]
[333690109,1722357044101,-151.0,0.00014236,2]
[333690110,1722357044111,-1645.957023,0.00014236,2]
[333690111,1722357044121,-236.793284,0.00014236,2]
[333690112,1722357044131,-236.793284,0.00014236,2]
[333690113,1722357044141,-191.292924,0.00014236,2]
[333690114,1722357044151,-191.292924,0.00014236,2]
[333690115,1722357044163,-151.0,0.00014236,2]
[333690116,1722357044172,-151.0,0.00014236,2]
[333690117,1722357044181,-248.174621,0.00014236,2]
[333690118,1722357044191,-248.174621,0.00014236,2]
[333690119,1722357044201,-248.174621,0.00014236,2]
[333690120,1722357044210,-248.174621,0.00014236,2]
[333690121,1722357044220,-230.560701,0.00014236,2]
[333690122,1722357044230,-230.560701,0.00014236,2]
[333690123,1722357044239,-151.0,0.00014236,2]
[333690124,1722357044249,-151.0,0.00014236,2]
[333690125,1722357044259,-1397.313399,0.00014236,2]
[333690126,1722357044269,-1397.313399,0.00014236,2]
[333690127,1722357044278,-1397.313399,0.00014236,2]
[333690128,1722357044288,-1397.313399,0.00014236,2]
[333690129,1722357044297,-391.247726,0.00014236,2]
[333690130,1722357044306,-391.247726,0.00014236,2]
[333690131,1722357044316,-391.247726,0.00014236,2]
[333690132,1722357044326,-391.247726,0.00014236,2]
[333690133,1722357044335,-151.0,0.00014236,2]
[333690134,1722357044345,-151.0,0.00014236,2]
[333690135,1722357044355,-151.0,0.00014236,2]
[333690136,1722357044364,-151.0,0.00014236,2]
[333690137,1722357044374,-151.0,0.00014236,2]
[333690138,1722357044383,-151.0,0.00014236,2]
[333690139,1722357044392,-465.661116,0.00014236,2]
[333690140,1722357044401,-465.661116,0.00014236,2]
[333690141,1722357044412,-1412.328664,0.00014236,2]
[333690142,1722357044422,-1412.328664,0.00014236,2]
[333690143,1722357044430,-923.95649843,0.00014236,2]
[333690144,1722357044698,-1291.13023957,0.00014236,2]
[333690145,1722357044708,-2215.086738,0.00014236,2]
[333690146,1722357044718,-1133.60302243,0.00014236,2]
[333690147,1722357044814,-707.984832,0.00014228,2]
[333690148,1722357044826,-118.26901157,0.00014236,2]
[333690149,1722357044836,-169.105404,0.00014236,2]
[333690150,1722357044846,-1004.64075243,0.00014236,2]
[333690151,1722357044972,-500.0,0.00013698,2]
[333690152,1722357044981,-500.0,0.00013698,2]
[333690153,1722357044990,-707.984832,0.00014228,2]
[333690154,1722357045000,-247.23128157,0.00014236,2]
[333690155,1722357045010,-754.608104,0.00014236,2]
[333690156,1722357045020,-375.73549858,0.00014236,2]
[333690157,1722357045034,-378.87260542,0.00014236,2]
[333690158,1722357045044,-2282.654054,0.00014236,2]
[333690159,1722357045055,-151.0,0.00014236,2]
[333690160,1722357045064,-805.38389534,0.00014236,2]
[333690161,1722357045076,-1075.48864695,0.00014236,2]
[333690213,1722357046270,-2024.8414958,0.00013597,2]
[333690214,1722357046279,-401.78151171,0.00014236,2]
[333690215,1722357046289,-151.0,0.00014236,2]
[333690216,1722357046299,-188.200112,0.00014236,2]
[333690217,1722357046308,-707.984832,0.00014236,2]
[333690218,1722357046318,-208.02157381,0.00014236,2]
[333690219,1722357046332,-499.96325819,0.00014236,2]
[333690220,1722357046344,-1401.52473871,0.00014236,2]
[333690221,1722357046357,-1798.47526129,0.00014236,2]
[333690222,1722357046368,-11685.2247387,0.00014236,2]
[333690225,1722357327245,412.79469751,0.0001,2]
[333690227,1722357381210,397.00221094,0.0001,2]
[333690228,1722357411240,412.79469751,0.0001,2]
[333690230,1722357494466,412.79469751,0.0001,2]
[333690232,1722357600259,412.79469751,0.0001,2]
[333690234,1722357718260,412.79469751,0.0001,2]
[333690235,1722357807280,412.79469751,0.0001,2]
[333690236,1722357902269,412.79469751,0.0001,2]
[333690237,1722358011277,412.79469751,0.0001,2]
[333690243,1722358132291,412.79469751,0.0001,2]
[333690247,1722358159139,-166.666666,0.00012286,2]
[333690248,1722358172285,354.87671746,0.00012121,2]
[333690295,1722358232212,-165.267753,0.00012529,2]
[333690296,1722358232226,-165.462873,0.00012986,2]
[333690297,1722358232237,-166.666666,0.00013123,2]
[333690298,1722358232249,-165.267753,0.00013182,2]
[333690299,1722358232261,-290.96583334,0.00013598,2]
[333690300,1722358232272,-178.696435,0.00013599,2]
[333690301,1722358232284,-170.763194,0.00013599,2]
[333690302,1722358232295,-160.0,0.00013637,3]
[333690303,1722358232306,-300.0,0.00013687,2]
[333690304,1722358232317,-1978.13357522,0.00013688,2]
[333690305,1722358232343,-1145.36335229,0.00013688,2]
[333690341,1722358239024,-3325.06,0.00013688,2]
[333690355,1722358243260,-396.85223137,0.00013688,2]
[333690356,1722358243317,-12284.48916708,0.00013688,2]
[333690357,1722358243329,-1194.42304474,0.00013688,2]
[333690358,1722358243340,-500.0,0.00013697,2]
[333690359,1722358243351,-500.0,0.00013697,2]
[333690360,1722358243360,-500.0,0.00013697,2]
[333690361,1722358243370,-500.0,0.00013698,2]
[333690362,1722358243380,-201.91022087,0.00013698,2]
[333690363,1722358243390,-547.02,0.00013698,2]
[333690364,1722358243400,-258.65233225,0.00013698,2]
[333690365,1722358243413,-648.38766775,0.00013698,2]
[333690366,1722358243422,-500.0,0.00013698,2]
[333690367,1722358243432,-500.0,0.00013698,2]
[333690368,1722358243442,-500.0,0.00013698,2]
[333690369,1722358243452,-500.0,0.00013698,2]
[333690370,1722358243463,-500.0,0.00013698,2]
[333690371,1722358243472,-500.0,0.00013698,2]
[333690372,1722358243482,-463.5474221,0.00013698,2]
[333690373,1722358243492,-662.2083221,0.00013698,2]
[333690374,1722358243505,-334.0510005,0.00013698,2]
[333690375,1722358243517,-279.9006774,0.00013698,2]
[333690377,1722358243527,-13.45493222,0.00013698,2]
[333690378,1722358243539,-404.01179138,0.00013698,2]
[333690387,1722358246292,-82.5332764,0.00013698,2]
[333690388,1722358246302,-500.0,0.00013698,2]
[333690389,1722358246311,-500.0,0.00013698,2]
[333690390,1722358246320,-500.0,0.00013698,2]
[333690391,1722358246329,-500.0,0.00013698,2]
[333690392,1722358246339,-500.0,0.00013698,2]
[333690393,1722358246348,-500.0,0.00013698,2]
[333690394,1722358246360,-240.97595881,0.00013698,2]
[333690395,1722358246369,-500.0,0.00013698,2]
[333690396,1722358246378,-500.0,0.00013698,2]
[333690397,1722358246387,-167.82674403,0.00013698,2]
[333690398,1722358246396,-500.0,0.00013698,2]
[333690399,1722358246405,-500.0,0.00013698,2]
[333690400,1722358246414,-500.0,0.00013698,2]
[333690401,1722358246423,-500.0,0.00013698,2]
[333690402,1722358246433,-500.0,0.00013698,2]
[333690403,1722358246442,-500.0,0.00013698,2]
[333690404,1722358246451,-500.0,0.00013698,2]
[333690405,1722358246460,-500.0,0.00013698,2]
[333690406,1722358246470,-500.0,0.00013698,2]
[333690407,1722358246480,-500.0,0.00013698,2]
[333690408,1722358246490,-500.0,0.00013698,2]
[333690409,1722358246499,-500.0,0.00013698,2]
[333690410,1722358246509,-500.0,0.00013698,2]
[333690411,1722358246518,-500.0,0.00013698,2]
[333690412,1722358246528,-339.7,0.00013698,2]
[333690413,1722358246537,-500.0,0.00013698,2]
[333690414,1722358246546,-500.0,0.00013698,2]
[333690415,1722358246556,-500.0,0.00013698,2]
[333690416,1722358246565,-500.0,0.00013698,2]
[333690417,1722358246575,-500.0,0.00013698,2]
[333690418,1722358246584,-500.0,0.00013698,2]
[333690419,1722358246594,-269.94241915,0.00013698,2]
[333690420,1722358246605,-500.0,0.00013698,2]
[333690421,1722358246615,-500.0,0.00013698,2]
[333690422,1722358246625,-500.0,0.00013698,2]
[333690423,1722358246634,-500.0,0.00013698,2]
[333690424,1722358246644,-2513.45,0.00013698,2]
[333690425,1722358246653,-500.0,0.00013698,2]
[333690426,1722358246662,-500.0,0.00013698,2]
[333690427,1722358246671,-500.0,0.00013698,2]
[333690428,1722358246681,-500.0,0.00013698,2]
[333690429,1722358246690,-500.0,0.00013698,2]
[333690430,1722358246699,-500.0,0.00013698,2]
[333690431,1722358246708,-500.0,0.00013698,2]
[333690432,1722358246718,-421.6098017,0.00013698,2]
[333690433,1722358246728,-500.0,0.00013698,2]
[333690434,1722358246737,-500.0,0.00013698,2]
[333690435,1722358246746,-500.0,0.00013698,2]
[333690436,1722358246756,-500.0,0.00013698,2]
[333690437,1722358246765,-500.0,0.00013698,2]
[333690438,1722358246775,-500.0,0.00013698,2]
[333690439,1722358246785,-500.0,0.00013698,2]
[333690440,1722358246794,-522.2480063,0.00013698,2]
[333690441,1722358246803,-500.0,0.00013698,2]
[333690442,1722358246813,-500.0,0.00013698,2]
[333690443,1722358246822,-500.0,0.00013698,2]
[333690444,1722358246831,-500.0,0.00013698,2]
[333690445,1722358246841,-500.0,0.00013698,2]
[333690446,1722358246852,-500.0,0.00013698,2]
[333690447,1722358246861,-500.0,0.00013698,2]
[333690448,1722358246870,-500.0,0.00013698,2]
[333690449,1722358246879,-505.41027114,0.00013698,2]
[333690450,1722358246889,-500.0,0.00013698,2]
[333690451,1722358246898,-500.0,0.00013698,2]
[333690452,1722358246908,-226.67,0.00013698,2]
[333690453,1722358246918,-1708.3,0.00013698,2]
[333690454,1722358246928,-500.0,0.00013698,2]
[333690455,1722358246937,-500.0,0.00013698,2]
[333690456,1722358246946,-500.0,0.00013698,2]
[333690457,1722358246956,-500.0,0.00013698,2]
[333690458,1722358246965,-500.0,0.00013698,2]
[333690459,1722358246974,-500.0,0.00013698,2]
[333690460,1722358246984,-500.0,0.00013698,2]
[333690461,1722358246993,-175.13000315,0.00013698,2]
[333690462,1722358247002,-500.0,0.00013698,2]
[333690463,1722358247012,-500.0,0.00013698,2]
[333690464,1722358247021,-500.0,0.00013698,2]
[333690465,1722358247032,-500.0,0.00013698,2]
[333690466,1722358247041,-502.04870292,0.00013698,2]
[333690467,1722358247051,-500.0,0.00013698,2]
[333690468,1722358247060,-500.0,0.00013698,2]
[333690469,1722358247069,-500.0,0.00013698,2]
[333690470,1722358247078,-500.0,0.00013698,2]
[333690471,1722358247087,-500.0,0.00013698,2]
[333690472,1722358247097,-500.0,0.00013698,2]
[333690473,1722358247107,-500.0,0.00013698,2]
[333690474,1722358247117,-500.0,0.00013698,2]
[333690475,1722358247126,-500.0,0.00013698,2]
[333690476,1722358247135,-500.0,0.00013698,2]
[333690477,1722358247146,-500.0,0.00013698,2]
[333690478,1722358247157,-500.0,0.00013698,2]
[333690479,1722358247167,-500.0,0.00013698,2]
[333690480,1722358247176,-500.0,0.00013698,2]
[333690481,1722358247186,-500.0,0.00013698,2]
[333690482,1722358247195,-500.0,0.00013698,2]
[333690483,1722358247206,-500.0,0.00013698,2]
[333690484,1722358247215,-500.0,0.00013698,2]
[333690485,1722358247225,-500.0,0.00013698,2]
[333690486,1722358247237,-506.21796571,0.00013698,2]
[333690487,1722358247249,-500.0,0.00013698,2]
[333690488,1722358247258,-491.3272288,0.00013698,2]
[333690489,1722358247268,-500.0,0.00013698,2]
[333690490,1722358247278,-500.0,0.00013698,2]
[333690491,1722358247287,-500.0,0.00013698,2]
[333690492,1722358247297,-500.0,0.00013698,2]
[333690493,1722358247306,-500.0,0.00013698,2]
[333690494,1722358247315,-501.91016536,0.00013698,2]
[333690495,1722358247326,-500.0,0.00013698,2]
[333690496,1722358247337,-500.0,0.00013698,2]
[333690497,1722358247346,-500.0,0.00013698,2]
[333690498,1722358247356,-500.01305754,0.00013698,2]
[333690499,1722358247365,-500.0,0.00013698,2]
[333690500,1722358247376,-459.8037636,0.00013698,2]
[333690501,1722358247385,-500.0,0.00013698,2]
[333690502,1722358247395,-175.62,0.00013698,2]
[333690503,1722358247404,-500.0,0.00013698,2]
[333690504,1722358247413,-500.0,0.00013698,2]
[333690505,1722358247422,-500.0,0.00013698,2]
[333690506,1722358247431,-500.0,0.00013698,2]
[333690507,1722358247441,-500.0,0.00013698,2]
[333690508,1722358247450,-500.0,0.00013698,2]
[333690509,1722358247459,-500.63198735,0.00013698,2]
[333690510,1722358247469,-500.0,0.00013698,2]
[333690511,1722358247478,-415.28690629,0.00013698,2]
[333690512,1722358247487,-500.0,0.00013698,2]
[333690513,1722358247497,-500.0,0.00013698,2]
[333690514,1722358247506,-500.0,0.00013698,2]
[333690515,1722358247515,-500.0,0.00013698,2]
[333690516,1722358247525,-500.0,0.00013698,2]
[333690517,1722358247534,-540.84368905,0.00013698,2]
[333690518,1722358247543,-500.0,0.00013698,2]
[333690519,1722358247553,-500.0,0.00013698,2]
[333690520,1722358247562,-500.0,0.00013698,2]
[333690521,1722358247571,-500.0,0.00013698,2]
[333690522,1722358247579,-500.0,0.00013698,2]
[333690523,1722358247589,-548.88879566,0.00013698,2]
[333690524,1722358247598,-500.0,0.00013698,2]
[333690525,1722358247608,-500.0,0.00013698,2]
[333690526,1722358247617,-500.0,0.00013698,2]
[333690527,1722358247627,-500.0,0.00013698,2]
[333690528,1722358247636,-371.7,0.00013698,2]
[333690529,1722358247645,-500.0,0.00013698,2]
[333690530,1722358247655,-500.0,0.00013698,2]
[333690531,1722358247664,-500.0,0.00013698,2]
[333690532,1722358247673,-500.0,0.00013698,2]
[333690533,1722358247682,-500.0,0.00013698,2]
[333690534,1722358247691,-500.0,0.00013698,2]
[333690535,1722358247701,-500.0,0.00013698,2]
[333690536,1722358247710,-506.24815418,0.00013698,2]
[333690537,1722358247720,-509.96246551,0.00013698,2]
[333690538,1722358247729,-500.0,0.00013698,2]
[333690539,1722358247738,-510.87888785,0.00013698,2]
[333690540,1722358247747,-500.0,0.00013698,2]
[333690541,1722358247756,-500.0,0.00013698,2]
[333690542,1722358247766,-500.0,0.00013698,2]
[333690543,1722358247775,-500.0,0.00013698,2]
[333690544,1722358247784,-500.0,0.00013698,2]
[333690545,1722358247793,-500.0,0.00013698,2]
[333690546,1722358247803,-500.0,0.00013698,2]
[333690547,1722358247813,-500.0,0.00013698,2]
[333690548,1722358247822,-181.47785899,0.00013698,2]
[333690549,1722358247831,-229.98137768,0.00013698,2]
[333690550,1722358247841,-500.0,0.00013698,2]
[333690551,1722358247852,-500.0,0.00013698,2]
[333690552,1722358247861,-500.0,0.00013698,2]
[333690553,1722358247870,-500.0,0.00013698,2]
[333690554,1722358247880,-500.0,0.00013698,2]
[333690555,1722358247889,-454.0040605,0.00013698,2]
[333690556,1722358247898,-291.07398027,0.00013698,2]
[333690557,1722358247907,-500.0,0.00013698,2]
[333690558,1722358247917,-500.0,0.00013698,2]
[333690559,1722358247926,-500.0,0.00013698,2]
[333690560,1722358247935,-500.0,0.00013698,2]
[333690561,1722358247945,-500.0,0.00013698,2]
[333690562,1722358247954,-500.0,0.00013698,2]
[333690563,1722358247963,-500.0,0.00013698,2]
[333690564,1722358247972,-500.0,0.00013698,2]
[333690565,1722358247981,-500.0,0.00013698,2]
[333690566,1722358247990,-500.0,0.00013698,2]
[333690567,1722358247999,-500.0,0.00013698,2]
[333690568,1722358248009,-500.0,0.00013698,2]
[333690569,1722358248018,-500.0,0.00013698,2]
[333690570,1722358248027,-500.0,0.00013698,2]
[333690571,1722358248036,-500.0,0.00013698,2]
[333690572,1722358248046,-500.0,0.00013698,2]
[333690573,1722358248055,-500.0,0.00013698,2]
[333690574,1722358248064,-500.0,0.00013698,2]
[333690575,1722358248073,-500.0,0.00013698,2]
[333690576,1722358248082,-519.03312754,0.00013698,2]
[333690577,1722358248092,-501.79460738,0.00013698,2]
[333690578,1722358248102,-500.0,0.00013698,2]
[333690579,1722358248111,-500.0,0.00013698,2]
[333690580,1722358248120,-500.0,0.00013698,2]
[333690581,1722358248129,-500.0,0.00013698,2]
[333690582,1722358248138,-160.98696437,0.00013698,2]
[333690583,1722358248147,-500.0,0.00013698,2]
[333690584,1722358248157,-500.0,0.00013698,2]
[333690585,1722358248169,-500.0,0.00013698,2]
[333690586,1722358248178,-500.0,0.00013698,2]
[333690587,1722358248187,-500.0,0.00013698,2]
[333690588,1722358248198,-550.0,0.00013698,2]
[333690589,1722358248208,-500.0,0.00013698,2]
[333690590,1722358248217,-500.0,0.00013698,2]
[333690591,1722358248226,-500.0,0.00013698,2]
[333690592,1722358248237,-500.0,0.00013698,2]
[333690593,1722358248246,-500.0,0.00013698,2]
[333690594,1722358248255,-500.0,0.00013698,2]
[333690595,1722358248265,-500.0,0.00013698,2]
[333690596,1722358248274,-500.0,0.00013698,2]
[333690597,1722358248283,-500.0,0.00013698,2]
[333690598,1722358248292,-500.0,0.00013698,2]
[333690599,1722358248302,-500.0,0.00013698,2]
[333690600,1722358248315,-399.34817046,0.00013698,2]
[333690601,1722358248324,-500.0,0.00013698,2]
[333690602,1722358248334,-500.0,0.00013698,2]
[333690603,1722358248343,-500.0,0.00013698,2]
[333690604,1722358248354,-500.0,0.00013698,2]
[333690605,1722358248363,-500.0,0.00013698,2]
[333690606,1722358248372,-164.39283556,0.00013698,2]
[333690607,1722358248381,-500.0,0.00013698,2]
[333690608,1722358248391,-500.0,0.00013698,2]
[333690609,1722358248401,-500.0,0.00013698,2]
[333690610,1722358248411,-500.0,0.00013698,2]
[333690611,1722358248420,-553.82563815,0.00013698,2]
[333690612,1722358248431,-258.21237859,0.00013698,2]
[333690613,1722358248440,-346.11224575,0.00013698,2]
[333690614,1722358248450,-547.02,0.00013698,2]
[333690615,1722358248459,-500.0,0.00013698,2]
[333690616,1722358248469,-500.0,0.00013698,2]
[333690617,1722358248479,-500.0,0.00013698,2]
[333690618,1722358248488,-500.0,0.00013698,2]
[333690619,1722358248497,-500.0,0.00013698,2]
[333690620,1722358248506,-507.24400412,0.00013698,2]
[333690621,1722358248516,-500.0,0.00013698,2]
[333690622,1722358248527,-503.11901391,0.00013698,2]
[333690623,1722358248537,-500.0,0.00013698,2]
[333690624,1722358248547,-500.0,0.00013698,2]
[333690625,1722358248557,-500.0,0.00013698,2]
[333690626,1722358248567,-500.0,0.00013698,2]
[333690627,1722358248577,-500.0,0.00013698,2]
[333690628,1722358248588,-500.0,0.00013698,2]
[333690629,1722358248598,-500.0,0.00013698,2]
[333690630,1722358248610,-214.29628257,0.00013698,2]
[333690631,1722358248620,-500.0,0.00013698,2]
[333690632,1722358248629,-500.0,0.00013698,2]
[333690633,1722358248638,-500.0,0.00013698,2]
[333690634,1722358248647,-500.0,0.00013698,2]
[333690635,1722358248657,-500.0,0.00013698,2]
[333690636,1722358248666,-500.0,0.00013698,2]
[333690637,1722358248675,-500.0,0.00013698,2]
[333690638,1722358248684,-500.0,0.00013698,2]